[Event "*** Titled Tuesday Blitz"]
[Site "Chess.com"]
[Date "2021.03.30"]
[Round "8"]
[White "Aleksey_Sorokin"]
[Black "BrandonJacobson"]
[Result "1-0"]
[WhiteElo "2783"]
[BlackElo "2957"]
[TimeControl "180+1"]
[EndTime "11:28:59 PDT"]
[Termination "Aleksey_Sorokin won by resignation"]

1. d4 {[%clk 0:02:54.7]} 1... d5 {[%clk 0:02:59.1]} 2. c4 {[%clk 0:02:54.2]}
2... e6 {[%clk 0:02:59.7]} 3. Nf3 {[%clk 0:02:54.4]} 3... h6 {[%clk 0:02:59.6]}
4. g3 {[%clk 0:02:53.7]} 4... Nf6 {[%clk 0:03:00.1]} 5. Bg2 {[%clk 0:02:54.1]}
5... Bd6 {[%clk 0:03:00.6]} 6. O-O {[%clk 0:02:53.4]} 6... O-O {[%clk
0:03:01.1]} 7. Qc2 {[%clk 0:02:52.9]} 7... b6 {[%clk 0:03:01.4]} 8. Rd1 {[%clk
0:02:51.7]} 8... Bb7 {[%clk 0:03:01.7]} 9. b3 {[%clk 0:02:50.7]} 9... Nbd7
{[%clk 0:02:59.2]} 10. Bb2 {[%clk 0:02:50.7]} 10... Qe7 {[%clk 0:02:59.5]} 11.
Nc3 {[%clk 0:02:50.4]} 11... a6 {[%clk 0:02:53.4]} 12. Rac1 {[%clk 0:02:50]}
12... c5 {[%clk 0:02:51.1]} 13. cxd5 {[%clk 0:02:41]} 13... exd5 {[%clk
0:02:52]} 14. e3 {[%clk 0:02:36.5]} 14... c4 {[%clk 0:02:38.5]} 15. Nh4 {[%clk
0:02:29]} 15... b5 {[%clk 0:02:04.7]} 16. Nf5 {[%clk 0:02:28.3]} 16... Qe6
{[%clk 0:02:05.1]} 17. bxc4 {[%clk 0:02:26.8]} 17... bxc4 {[%clk 0:02:05]} 18.
Bh3 {[%clk 0:02:13.4]} 18... Kh8 {[%clk 0:02:03.2]} 19. Kg2 {[%clk 0:02:13.5]}
19... g5 {[%clk 0:01:42.8]} 20. Nxd6 {[%clk 0:01:58.7]} 20... Qxd6 {[%clk
0:01:43.7]} 21. Bxd7 {[%clk 0:01:48.5]} 21... Qxd7 {[%clk 0:01:40.7]} 22. e4
{[%clk 0:01:46.4]} 22... dxe4 {[%clk 0:01:31.6]} 23. d5 {[%clk 0:01:45.6]} 23...
Kg8 {[%clk 0:01:19.9]} 24. Nxe4 {[%clk 0:01:38.1]} 24... Nxe4 {[%clk 0:01:18.7]}
25. Qxe4 {[%clk 0:01:39]} 25... Rad8 {[%clk 0:01:18.6]} 26. Kg1 {[%clk
0:01:31.4]} 26... Bxd5 {[%clk 0:01:11.3]} 27. Qd4 {[%clk 0:01:07.2]} 27... f6
{[%clk 0:01:09]} 28. Qc5 {[%clk 0:00:56.4]} 28... Qe6 {[%clk 0:01:01.8]} 29. Bc3
{[%clk 0:00:39.3]} 29... Qe4 {[%clk 0:00:57.4]} 30. Rxd5 {[%clk 0:00:33.5]}
30... Rxd5 {[%clk 0:00:53.4]} 31. Qb6 {[%clk 0:00:29.6]} 31... Rfd8 {[%clk
0:00:49.9]} 32. Re1 {[%clk 0:00:28.9]} 32... Qf5 {[%clk 0:00:29.3]} 33. Kg2
{[%clk 0:00:23.9]} 33... g4 {[%clk 0:00:21.2]} 34. Re3 {[%clk 0:00:19.9]} 34...
Rd3 {[%clk 0:00:17]} 35. h4 {[%clk 0:00:18.3]} 35... Qd5+ {[%clk 0:00:15]} 36.
Kh2 {[%clk 0:00:18.3]} 36... Rd1 {[%clk 0:00:15.5]} 37. Be1 {[%clk 0:00:17.7]}
37... Qf5 {[%clk 0:00:11.8]} 38. Re7 {[%clk 0:00:15]} 38... R8d7 {[%clk
0:00:08.4]} 39. Qb8+ {[%clk 0:00:13.9]} 39... Rd8 {[%clk 0:00:09]} 40. Qc7
{[%clk 0:00:14.2]} 40... R1d7 {[%clk 0:00:09.6]} 41. Qxc4+ {[%clk 0:00:10.8]}
41... Qd5 {[%clk 0:00:10.1]} 42. Qxg4+ {[%clk 0:00:10.4]} 1-0

[Event "*** Titled Tuesday Blitz"]
[Site "Chess.com"]
[Date "2021.03.30"]
[Round "8"]
[White "Michaelson_11"]
[Black "Spriteball"]
[Result "1-0"]
[WhiteElo "2249"]
[BlackElo "2344"]
[TimeControl "180+1"]
[EndTime "11:28:59 PDT"]
[Termination "Michaelson_11 won on time"]

1. e4 {[%clk 0:03:00.9]} 1... e5 {[%clk 0:03:00.3]} 2. Nf3 {[%clk 0:02:58.8]}
2... Nc6 {[%clk 0:03:00.4]} 3. Nc3 {[%clk 0:02:55.2]} 3... Nf6 {[%clk
0:03:00.3]} 4. Bb5 {[%clk 0:02:54.8]} 4... Bc5 {[%clk 0:02:56.6]} 5. O-O {[%clk
0:02:50]} 5... d6 {[%clk 0:02:55.8]} 6. d4 {[%clk 0:02:47.4]} 6... exd4 {[%clk
0:02:56.7]} 7. Nxd4 {[%clk 0:02:48.3]} 7... Bd7 {[%clk 0:02:57.1]} 8. Nf5 {[%clk
0:02:46.4]} 8... O-O {[%clk 0:02:52.3]} 9. Bg5 {[%clk 0:02:28]} 9... h6 {[%clk
0:02:33.4]} 10. Bxf6 {[%clk 0:02:15.7]} 10... Qxf6 {[%clk 0:02:32.7]} 11. Nd5
{[%clk 0:02:15.8]} 11... Qd8 {[%clk 0:02:25.6]} 12. Bxc6 {[%clk 0:02:07.4]}
12... bxc6 {[%clk 0:02:21.8]} 13. Nde7+ {[%clk 0:01:58.7]} 13... Kh8 {[%clk
0:02:21.6]} 14. Qg4 {[%clk 0:01:57.5]} 14... Bd4 {[%clk 0:01:45.3]} 15. Nxc6
{[%clk 0:01:31.9]} 15... Bxc6 {[%clk 0:01:09.5]} 16. Nxd4 {[%clk 0:01:20.4]}
16... Bd7 {[%clk 0:01:09.4]} 17. Qg3 {[%clk 0:01:04.9]} 17... Rb8 {[%clk
0:01:08.5]} 18. b3 {[%clk 0:01:00.8]} 18... Qf6 {[%clk 0:01:08.3]} 19. Rad1
{[%clk 0:00:45.4]} 19... Rfe8 {[%clk 0:01:07.1]} 20. Rfe1 {[%clk 0:00:37.1]}
20... Re7 {[%clk 0:00:45.3]} 21. c4 {[%clk 0:00:25.2]} 21... Rbe8 {[%clk
0:00:43.6]} 22. f3 {[%clk 0:00:24.1]} 22... c6 {[%clk 0:00:35]} 23. Ne2 {[%clk
0:00:15.2]} 23... Re6 {[%clk 0:00:28]} 24. Nf4 {[%clk 0:00:13.8]} 24... R6e7
{[%clk 0:00:26.1]} 25. Nh5 {[%clk 0:00:12.7]} 25... Qg6 {[%clk 0:00:20.9]} 26.
Qxg6 {[%clk 0:00:12.2]} 26... fxg6 {[%clk 0:00:21.8]} 27. Nf4 {[%clk 0:00:13.1]}
27... Kh7 {[%clk 0:00:19.6]} 28. Rxd6 {[%clk 0:00:13.2]} 28... g5 {[%clk
0:00:19.5]} 29. Ng6 {[%clk 0:00:09.3]} 29... Rf7 {[%clk 0:00:13.2]} 30. Red1
{[%clk 0:00:06.7]} 30... Bc8 {[%clk 0:00:12.2]} 31. Rxc6 {[%clk 0:00:04.3]}
31... Rf6 {[%clk 0:00:10.3]} 32. Rdd6 {[%clk 0:00:02]} 32... Rxd6 {[%clk
0:00:08.7]} 33. Rxd6 {[%clk 0:00:02.9]} 33... a5 {[%clk 0:00:04.5]} 34. h4
{[%clk 0:00:03.2]} 34... Bb7 {[%clk 0:00:01.2]} 35. h5 {[%clk 0:00:03]} 1-0

[Event "*** Titled Tuesday Blitz"]
[Site "Chess.com"]
[Date "2021.03.30"]
[Round "8"]
[White "Susik_Gaboyan"]
[Black "geordie_derraugh"]
[Result "1-0"]
[WhiteElo "2256"]
[BlackElo "2430"]
[TimeControl "180+1"]
[EndTime "11:29:02 PDT"]
[Termination "Susik_Gaboyan won by checkmate"]

1. e4 {[%clk 0:02:57.8]} 1... c5 {[%clk 0:02:59.7]} 2. Nc3 {[%clk 0:02:57.6]}
2... Nc6 {[%clk 0:02:59.5]} 3. f4 {[%clk 0:02:57.9]} 3... g6 {[%clk 0:02:59.7]}
4. Bb5 {[%clk 0:02:57.6]} 4... Nd4 {[%clk 0:02:59.6]} 5. Nf3 {[%clk 0:02:56.7]}
5... Nxb5 {[%clk 0:02:55.9]} 6. Nxb5 {[%clk 0:02:57.6]} 6... d5 {[%clk
0:02:55.7]} 7. exd5 {[%clk 0:02:56.3]} 7... a6 {[%clk 0:02:49.5]} 8. Nc3 {[%clk
0:02:48]} 8... Bg7 {[%clk 0:02:49.9]} 9. O-O {[%clk 0:02:44.4]} 9... Nf6 {[%clk
0:02:49.9]} 10. d4 {[%clk 0:02:40.8]} 10... c4 {[%clk 0:02:50.2]} 11. Ne5 {[%clk
0:02:31.8]} 11... Nxd5 {[%clk 0:02:21]} 12. Nxc4 {[%clk 0:02:27.9]} 12... O-O
{[%clk 0:02:13.5]} 13. Ne5 {[%clk 0:02:18.7]} 13... Bf5 {[%clk 0:02:10.4]} 14.
Nxd5 {[%clk 0:02:15.7]} 14... Qxd5 {[%clk 0:02:10]} 15. c3 {[%clk 0:02:16.3]}
15... f6 {[%clk 0:01:55.9]} 16. Nd3 {[%clk 0:02:01.4]} 16... Rad8 {[%clk
0:01:49.6]} 17. Nc5 {[%clk 0:01:28.8]} 17... e5 {[%clk 0:01:44.7]} 18. fxe5
{[%clk 0:01:15.9]} 18... fxe5 {[%clk 0:01:44.6]} 19. Bg5 {[%clk 0:00:50.7]}
19... Rd6 {[%clk 0:01:38.5]} 20. Be7 {[%clk 0:00:35.9]} 20... exd4 {[%clk
0:01:37.8]} 21. Bxd6 {[%clk 0:00:34.6]} 21... Qxd6 {[%clk 0:01:37.9]} 22. Nb3
{[%clk 0:00:28.7]} 22... d3 {[%clk 0:01:34.7]} 23. Qd2 {[%clk 0:00:25]} 23... a5
{[%clk 0:01:31.2]} 24. Rae1 {[%clk 0:00:17.8]} 24... Be5 {[%clk 0:01:11.1]} 25.
h3 {[%clk 0:00:09.9]} 25... Bh2+ {[%clk 0:00:49.6]} 26. Kh1 {[%clk 0:00:09.6]}
26... Bg3 {[%clk 0:00:50.2]} 27. Rd1 {[%clk 0:00:04]} 27... Qd5 {[%clk
0:00:44.7]} 28. Nd4 {[%clk 0:00:02.5]} 28... Bxh3 {[%clk 0:00:44.5]} 29. Rxf8+
{[%clk 0:00:03.4]} 29... Kxf8 {[%clk 0:00:45.1]} 30. Rf1+ {[%clk 0:00:03.2]}
30... Kg8 {[%clk 0:00:44.8]} 31. Rf3 {[%clk 0:00:03.9]} 31... Bxg2+ {[%clk
0:00:26.6]} 32. Kxg2 {[%clk 0:00:03.7]} 32... Be5 {[%clk 0:00:24.6]} 33. Qxd3
{[%clk 0:00:03.8]} 33... Qxa2 {[%clk 0:00:22.2]} 34. Qe4 {[%clk 0:00:02.9]}
34... Qxb2+ {[%clk 0:00:22.2]} 35. Rf2 {[%clk 0:00:03.4]} 35... Qxc3 {[%clk
0:00:16]} 36. Qxe5 {[%clk 0:00:03.8]} 36... Qc7 {[%clk 0:00:16.2]} 37. Qe6+
{[%clk 0:00:03.8]} 37... Kg7 {[%clk 0:00:16.3]} 38. Qd5 {[%clk 0:00:01.3]} 38...
Kh6 {[%clk 0:00:15.5]} 39. Ne6 {[%clk 0:00:02]} 39... Qc3 {[%clk 0:00:13.5]} 40.
Qd2+ {[%clk 0:00:02]} 40... Qxd2 {[%clk 0:00:13.2]} 41. Rxd2 {[%clk 0:00:02.9]}
41... b5 {[%clk 0:00:13.9]} 42. Kf3 {[%clk 0:00:03.5]} 42... b4 {[%clk
0:00:14.8]} 43. Rh2# {[%clk 0:00:04]} 1-0

[Event "*** Titled Tuesday Blitz"]
[Site "Chess.com"]
[Date "2021.03.30"]
[Round "8"]
[White "GianmarcoVaR"]
[Black "NateSolon"]
[Result "0-1"]
[WhiteElo "2739"]
[BlackElo "2586"]
[TimeControl "180+1"]
[EndTime "11:29:05 PDT"]
[Termination "NateSolon won on time"]

1. Nf3 {[%clk 0:03:00.9]} 1... d5 {[%clk 0:02:57.5]} 2. g3 {[%clk 0:03:00.9]}
2... g6 {[%clk 0:02:54.2]} 3. Bg2 {[%clk 0:03:01]} 3... Bg7 {[%clk 0:02:52.8]}
4. O-O {[%clk 0:02:59.5]} 4... e5 {[%clk 0:02:52.7]} 5. d3 {[%clk 0:02:58.9]}
5... Ne7 {[%clk 0:02:52.5]} 6. c4 {[%clk 0:02:54.8]} 6... c6 {[%clk 0:02:52.1]}
7. Nc3 {[%clk 0:02:46.2]} 7... O-O {[%clk 0:02:51.1]} 8. Rb1 {[%clk 0:02:41.9]}
8... h6 {[%clk 0:02:50.1]} 9. a3 {[%clk 0:02:31.7]} 9... Be6 {[%clk 0:02:46.9]}
10. Qb3 {[%clk 0:01:58.3]} 10... Qd7 {[%clk 0:02:36.7]} 11. Rd1 {[%clk
0:01:57.1]} 11... Na6 {[%clk 0:02:27.1]} 12. Qc2 {[%clk 0:01:43.4]} 12... d4
{[%clk 0:02:21]} 13. Na4 {[%clk 0:01:36.6]} 13... Rac8 {[%clk 0:02:13.6]} 14. b4
{[%clk 0:01:33.1]} 14... b5 {[%clk 0:02:11.1]} 15. Nb2 {[%clk 0:01:33.4]} 15...
c5 {[%clk 0:01:56.8]} 16. Bd2 {[%clk 0:01:33.5]} 16... cxb4 {[%clk 0:01:50.5]}
17. axb4 {[%clk 0:01:32.3]} 17... Nd5 {[%clk 0:01:34.4]} 18. Ra1 {[%clk
0:00:52.8]} 18... Ndxb4 {[%clk 0:01:26.7]} 19. Qb3 {[%clk 0:00:41]} 19... bxc4
{[%clk 0:01:24.8]} 20. Nxc4 {[%clk 0:00:41.1]} 20... Bxc4 {[%clk 0:01:08.5]} 21.
dxc4 {[%clk 0:00:40.4]} 21... Rb8 {[%clk 0:01:08.4]} 22. Qa4 {[%clk 0:00:15.6]}
22... Qc7 {[%clk 0:01:00.5]} 23. Rdb1 {[%clk 0:00:04.9]} 23... Qxc4 {[%clk
0:00:58.1]} 24. Bf1 {[%clk 0:00:03.9]} 24... e4 {[%clk 0:00:53.1]} 25. Nh4
{[%clk 0:00:03.4]} 25... Rfc8 {[%clk 0:00:30]} 26. Rc1 {[%clk 0:00:03.7]} 26...
Qe6 {[%clk 0:00:16.1]} 27. Rxc8+ {[%clk 0:00:02.6]} 27... Qxc8 {[%clk 0:00:17]}
28. Bxb4 {[%clk 0:00:02.8]} 28... Nxb4 {[%clk 0:00:17.9]} 29. Qxa7 {[%clk
0:00:03.1]} 29... d3 {[%clk 0:00:17.5]} 30. Rd1 {[%clk 0:00:03]} 30... Ra8
{[%clk 0:00:14.4]} 31. Qe3 {[%clk 0:00:02.7]} 31... Qc2 {[%clk 0:00:13.6]} 32.
Rc1 {[%clk 0:00:02.8]} 32... Qb2 {[%clk 0:00:12.3]} 33. Qxe4 {[%clk 0:00:03.1]}
33... Rd8 {[%clk 0:00:06.4]} 34. Rd1 {[%clk 0:00:02.6]} 34... d2 {[%clk
0:00:06.4]} 35. Nf3 {[%clk 0:00:02.5]} 35... Qc1 {[%clk 0:00:06.3]} 36. Qxb4
{[%clk 0:00:02]} 36... Qxd1 {[%clk 0:00:06.1]} 37. Qa5 {[%clk 0:00:02.7]} 37...
Rd6 {[%clk 0:00:03.9]} 0-1

[Event "*** Titled Tuesday Blitz"]
[Site "Chess.com"]
[Date "2021.03.30"]
[Round "8"]
[White "MasterKroket"]
[Black "sokidze"]
[Result "1-0"]
[WhiteElo "2536"]
[BlackElo "2758"]
[TimeControl "180+1"]
[EndTime "11:29:05 PDT"]
[Termination "MasterKroket won by checkmate"]

1. d4 {[%clk 0:03:00.9]} 1... Nf6 {[%clk 0:03:00.1]} 2. c4 {[%clk 0:03:00.8]}
2... e6 {[%clk 0:03:00.2]} 3. Nf3 {[%clk 0:03:01.1]} 3... b6 {[%clk 0:03:00.4]}
4. a3 {[%clk 0:03:01.1]} 4... Bb7 {[%clk 0:03:00.4]} 5. Nc3 {[%clk 0:03:01.6]}
5... Ne4 {[%clk 0:03:01]} 6. Qc2 {[%clk 0:03:00.7]} 6... Nxc3 {[%clk 0:02:52]}
7. Qxc3 {[%clk 0:03:00.3]} 7... Be7 {[%clk 0:02:52.2]} 8. Bf4 {[%clk 0:02:56.3]}
8... O-O {[%clk 0:02:49.7]} 9. e3 {[%clk 0:02:55.2]} 9... d6 {[%clk 0:02:42]}
10. Be2 {[%clk 0:02:54.5]} 10... f5 {[%clk 0:02:40]} 11. h3 {[%clk 0:02:43.6]}
11... Nd7 {[%clk 0:02:38.3]} 12. O-O {[%clk 0:02:42.5]} 12... Nf6 {[%clk
0:02:38.3]} 13. Nd2 {[%clk 0:02:42.1]} 13... Qe8 {[%clk 0:02:34.3]} 14. Bf3
{[%clk 0:02:40]} 14... Ne4 {[%clk 0:02:33.4]} 15. Nxe4 {[%clk 0:02:38.5]} 15...
fxe4 {[%clk 0:02:34.3]} 16. Bg4 {[%clk 0:02:35.1]} 16... Bf6 {[%clk 0:02:30.3]}
17. Qc2 {[%clk 0:02:24.5]} 17... h5 {[%clk 0:01:41.1]} 18. Be2 {[%clk
0:02:23.2]} 18... g5 {[%clk 0:01:38.3]} 19. Bg3 {[%clk 0:02:22.6]} 19... Qg6
{[%clk 0:01:38]} 20. f4 {[%clk 0:02:12.6]} 20... Kg7 {[%clk 0:01:27.1]} 21. c5
{[%clk 0:02:04.3]} 21... gxf4 {[%clk 0:01:07.5]} 22. Bxf4 {[%clk 0:02:03.4]}
22... bxc5 {[%clk 0:01:08.1]} 23. dxc5 {[%clk 0:02:03]} 23... e5 {[%clk
0:01:08.8]} 24. Bh2 {[%clk 0:02:02.8]} 24... Bc8 {[%clk 0:01:08.7]} 25. cxd6
{[%clk 0:02:01.7]} 25... cxd6 {[%clk 0:00:47.2]} 26. Kh1 {[%clk 0:01:58.8]}
26... Rf7 {[%clk 0:00:39.4]} 27. Bc4 {[%clk 0:01:57.2]} 27... Rc7 {[%clk
0:00:37.7]} 28. Qb3 {[%clk 0:01:47.6]} 28... Bd7 {[%clk 0:00:31.7]} 29. Qb4
{[%clk 0:01:22.4]} 29... Be8 {[%clk 0:00:07]} 30. Bd5 {[%clk 0:01:09.8]} 30...
Rd8 {[%clk 0:00:05.4]} 31. Rf2 {[%clk 0:00:55.3]} 31... Bf7 {[%clk 0:00:04.6]}
32. Qd2 {[%clk 0:00:51.3]} 32... Bxd5 {[%clk 0:00:04.2]} 33. Qxd5 {[%clk
0:00:52.2]} 33... Rf7 {[%clk 0:00:03.6]} 34. Raf1 {[%clk 0:00:50.8]} 34... Rdf8
{[%clk 0:00:02.8]} 35. Qxd6 {[%clk 0:00:49.9]} 35... Qh6 {[%clk 0:00:01.7]} 36.
Rxf6 {[%clk 0:00:46.5]} 36... Rxf6 {[%clk 0:00:02]} 37. Bxe5 {[%clk 0:00:46.8]}
37... Qxe3 {[%clk 0:00:02.4]} 38. Qe7+ {[%clk 0:00:38.5]} 38... Kg6 {[%clk
0:00:01.4]} 39. Rxf6+ {[%clk 0:00:37.6]} 39... Kg5 {[%clk 0:00:01.8]} 40. Qg7+
{[%clk 0:00:37.4]} 40... Kh4 {[%clk 0:00:02]} 41. Qg3+ {[%clk 0:00:24.8]} 41...
Qxg3 {[%clk 0:00:02.1]} 42. Bxg3+ {[%clk 0:00:25.7]} 42... Kxg3 {[%clk
0:00:02.8]} 43. Rxf8 {[%clk 0:00:26.3]} 43... e3 {[%clk 0:00:03.7]} 44. Kg1
{[%clk 0:00:25.3]} 44... h4 {[%clk 0:00:03]} 45. Rf3# {[%clk 0:00:24.5]} 1-0

[Event "*** Titled Tuesday Blitz"]
[Site "Chess.com"]
[Date "2021.03.30"]
[Round "8"]
[White "frenchpin"]
[Black "Rozhkov_V"]
[Result "0-1"]
[WhiteElo "2513"]
[BlackElo "2404"]
[TimeControl "180+1"]
[EndTime "11:29:07 PDT"]
[Termination "Rozhkov_V won on time"]

1. e4 {[%clk 0:03:00.9]} 1... c5 {[%clk 0:02:59.8]} 2. Nf3 {[%clk 0:03:01]} 2...
d6 {[%clk 0:02:59.8]} 3. d4 {[%clk 0:03:00.8]} 3... cxd4 {[%clk 0:02:59.8]} 4.
Nxd4 {[%clk 0:03:01.7]} 4... Nf6 {[%clk 0:03:00.2]} 5. f3 {[%clk 0:03:02.4]}
5... Nc6 {[%clk 0:02:54.5]} 6. c4 {[%clk 0:03:02.1]} 6... Nxd4 {[%clk
0:02:51.2]} 7. Qxd4 {[%clk 0:03:01.4]} 7... g6 {[%clk 0:02:51.6]} 8. Nc3 {[%clk
0:02:59.8]} 8... Bg7 {[%clk 0:02:51.9]} 9. Be3 {[%clk 0:02:59.3]} 9... O-O
{[%clk 0:02:52.1]} 10. Qd2 {[%clk 0:02:59.6]} 10... Bd7 {[%clk 0:02:50.1]} 11.
Be2 {[%clk 0:02:58.1]} 11... a6 {[%clk 0:02:49.3]} 12. O-O {[%clk 0:02:54.4]}
12... Rc8 {[%clk 0:02:44.4]} 13. Rac1 {[%clk 0:02:53.6]} 13... Bc6 {[%clk
0:02:41.2]} 14. b4 {[%clk 0:02:50.6]} 14... Bd7 {[%clk 0:02:27.7]} 15. a4 {[%clk
0:02:45.6]} 15... a5 {[%clk 0:02:21.1]} 16. bxa5 {[%clk 0:02:27.4]} 16... Qxa5
{[%clk 0:01:40.5]} 17. Nd5 {[%clk 0:02:26.9]} 17... Qd8 {[%clk 0:01:36]} 18. Qb4
{[%clk 0:02:22.1]} 18... Bc6 {[%clk 0:01:31.4]} 19. a5 {[%clk 0:02:15.3]} 19...
Nd7 {[%clk 0:01:26.8]} 20. Bg5 {[%clk 0:02:08.5]} 20... Re8 {[%clk 0:01:15.4]}
21. Rfd1 {[%clk 0:02:01.5]} 21... Ra8 {[%clk 0:01:13.9]} 22. h4 {[%clk
0:01:42.4]} 22... h6 {[%clk 0:01:01.9]} 23. Bd2 {[%clk 0:01:36.8]} 23... Bd4+
{[%clk 0:00:59.3]} 24. Kf1 {[%clk 0:01:03.2]} 24... e6 {[%clk 0:00:57.9]} 25.
Bf4 {[%clk 0:00:57.7]} 25... Bc5 {[%clk 0:00:56.1]} 26. Qd2 {[%clk 0:00:30]}
26... Qxh4 {[%clk 0:00:55.4]} 27. Be3 {[%clk 0:00:17.9]} 27... exd5 {[%clk
0:00:55.2]} 28. cxd5 {[%clk 0:00:14]} 28... Ba4 {[%clk 0:00:53.6]} 29. Re1
{[%clk 0:00:12.8]} 29... Bxe3 {[%clk 0:00:45.4]} 30. Qxe3 {[%clk 0:00:12.8]}
30... Nc5 {[%clk 0:00:45.5]} 31. Rxc5 {[%clk 0:00:08.3]} 31... dxc5 {[%clk
0:00:45.2]} 32. Qxc5 {[%clk 0:00:08.8]} 32... Rec8 {[%clk 0:00:39.2]} 33. Qb4
{[%clk 0:00:08.8]} 33... Bd7 {[%clk 0:00:19.6]} 34. Qxb7 {[%clk 0:00:08.7]}
34... Qh1+ {[%clk 0:00:18.1]} 35. Kf2 {[%clk 0:00:08.1]} 35... Qh4+ {[%clk
0:00:18.8]} 36. Kf1 {[%clk 0:00:08.3]} 36... Be8 {[%clk 0:00:16.7]} 37. a6
{[%clk 0:00:05.8]} 37... Rab8 {[%clk 0:00:16.8]} 38. Qa7 {[%clk 0:00:04]} 38...
Rb2 {[%clk 0:00:16.6]} 39. Qf2 {[%clk 0:00:02]} 39... Qh1+ {[%clk 0:00:15.4]}
40. Qg1 {[%clk 0:00:02.1]} 40... Qxg1+ {[%clk 0:00:15.6]} 41. Kxg1 {[%clk
0:00:03]} 41... Rcc2 {[%clk 0:00:15.3]} 0-1

[Event "*** Titled Tuesday Blitz"]
[Site "Chess.com"]
[Date "2021.03.30"]
[Round "8"]
[White "Eltaj_Safarli"]
[Black "Jospem"]
[Result "1-0"]
[WhiteElo "2882"]
[BlackElo "2953"]
[TimeControl "180+1"]
[EndTime "11:29:09 PDT"]
[Termination "Eltaj_Safarli won by checkmate"]

1. e4 {[%clk 0:03:00.9]} 1... e5 {[%clk 0:02:57.5]} 2. Nf3 {[%clk 0:03:00.7]}
2... Nc6 {[%clk 0:02:58.1]} 3. Bb5 {[%clk 0:02:57.5]} 3... a6 {[%clk 0:02:58]}
4. Ba4 {[%clk 0:02:57.5]} 4... Nf6 {[%clk 0:02:54.5]} 5. Nc3 {[%clk 0:02:57.1]}
5... b5 {[%clk 0:02:41.8]} 6. Bb3 {[%clk 0:02:57]} 6... Be7 {[%clk 0:02:42]} 7.
a4 {[%clk 0:02:56.2]} 7... b4 {[%clk 0:02:38.8]} 8. Nd5 {[%clk 0:02:56.2]} 8...
O-O {[%clk 0:02:35.3]} 9. Nxf6+ {[%clk 0:02:51.9]} 9... Bxf6 {[%clk 0:02:35.1]}
10. Bd5 {[%clk 0:02:52.8]} 10... Bb7 {[%clk 0:02:19.9]} 11. O-O {[%clk 0:02:52]}
11... Rb8 {[%clk 0:02:15.7]} 12. d3 {[%clk 0:02:50.4]} 12... Ne7 {[%clk
0:02:15.1]} 13. Bxb7 {[%clk 0:02:49.9]} 13... Rxb7 {[%clk 0:02:16]} 14. d4
{[%clk 0:02:42.1]} 14... Ng6 {[%clk 0:02:05.2]} 15. Be3 {[%clk 0:02:38.9]} 15...
exd4 {[%clk 0:01:42.3]} 16. Bxd4 {[%clk 0:02:39.8]} 16... d6 {[%clk 0:01:40.7]}
17. Re1 {[%clk 0:02:33.6]} 17... c5 {[%clk 0:01:37.6]} 18. Bxf6 {[%clk
0:02:30.9]} 18... Qxf6 {[%clk 0:01:38.5]} 19. b3 {[%clk 0:02:31.8]} 19... Re7
{[%clk 0:01:29]} 20. g3 {[%clk 0:02:18.5]} 20... Rfe8 {[%clk 0:01:26.3]} 21. Qd3
{[%clk 0:02:16.7]} 21... h6 {[%clk 0:01:15.6]} 22. Rad1 {[%clk 0:02:14.1]} 22...
a5 {[%clk 0:01:14.3]} 23. h4 {[%clk 0:02:10.3]} 23... Re6 {[%clk 0:00:58.7]} 24.
Kg2 {[%clk 0:01:57]} 24... Qe7 {[%clk 0:00:45.2]} 25. Nd2 {[%clk 0:01:43]} 25...
d5 {[%clk 0:00:17.7]} 26. Qb5 {[%clk 0:01:16.4]} 26... dxe4 {[%clk 0:00:16.3]}
27. Nc4 {[%clk 0:01:16.5]} 27... Nxh4+ {[%clk 0:00:14.7]} 28. gxh4 {[%clk
0:01:14.5]} 28... Qxh4 {[%clk 0:00:15]} 29. Rd6 {[%clk 0:01:11.6]} 29... Qg4+
{[%clk 0:00:08.2]} 30. Kf1 {[%clk 0:01:10.1]} 30... Qh3+ {[%clk 0:00:08.5]} 31.
Kg1 {[%clk 0:01:06.6]} 31... Kh7 {[%clk 0:00:05.4]} 32. Re3 {[%clk 0:00:58.5]}
32... Qh4 {[%clk 0:00:03.6]} 33. Rxe6 {[%clk 0:00:50.2]} 33... Rxe6 {[%clk
0:00:03.6]} 34. Rg3 {[%clk 0:00:50.7]} 34... e3 {[%clk 0:00:02.4]} 35. Nxe3
{[%clk 0:00:49.5]} 35... g6 {[%clk 0:00:01.9]} 36. Qxc5 {[%clk 0:00:47.7]} 36...
Qf4 {[%clk 0:00:02.2]} 37. Qd5 {[%clk 0:00:42]} 37... Rf6 {[%clk 0:00:01.7]} 38.
Qg2 {[%clk 0:00:40.8]} 38... h5 {[%clk 0:00:01.8]} 39. Rh3 {[%clk 0:00:36.9]}
39... Re6 {[%clk 0:00:02.1]} 40. Rf3 {[%clk 0:00:35.1]} 40... Qc7 {[%clk
0:00:02.5]} 41. Qg5 {[%clk 0:00:31.1]} 41... Re5 {[%clk 0:00:03]} 42. Rxf7+
{[%clk 0:00:30.3]} 42... Qxf7 {[%clk 0:00:03.9]} 43. Qxe5 {[%clk 0:00:30.8]}
43... Qd7 {[%clk 0:00:04]} 44. Qf4 {[%clk 0:00:28.2]} 44... Qe7 {[%clk
0:00:03.8]} 45. Kg2 {[%clk 0:00:27.6]} 45... Qb7+ {[%clk 0:00:04]} 46. Qf3
{[%clk 0:00:27.7]} 46... Qc7 {[%clk 0:00:03.7]} 47. Nd5 {[%clk 0:00:26.6]} 47...
Qxc2 {[%clk 0:00:03.8]} 48. Qf7+ {[%clk 0:00:26.6]} 48... Kh6 {[%clk 0:00:04.3]}
49. Qf8+ {[%clk 0:00:27]} 49... Kh7 {[%clk 0:00:05.1]} 50. Nf6# {[%clk
0:00:27.1]} 1-0